{"text_format":"3","workbook":"xlsx","n_sheets":5,"sheets":["Przegląd przyjęcia","Lista gości","Jedzenie i napoje","Inne ważne rzeczy","Siatka usadzenia gości"],"not_rendered":{"defined_names":9},"read":"whole","date_system":"1900"}

{"sheet":"Przegląd przyjęcia","index":0,"n_rows":20,"n_cols":8,"rows_kept":20,"merged":[[6,3,6,4],[6,5,6,6],[9,1,9,2]]}
[]
[]
[null,"Przegląd przyjęcia"]
[]
[]
[null,"WYDARZENIE",null,"GOŚCIE — PODSUMOWANIE",{"$nulls":3},{"$f":"\"ZALEGŁE POTWIERDZENIA:  \"&Zaległe_potwierdzenia","v":"ZALEGŁE POTWIERDZENIA:  2"}]
[null,"75. urodziny babci",null,"PRZEGLĄD PRÓŚB O ODPOWIEDŹ",null,"KOSZT NA GOŚCIA",null,"KWOTA BUDŻETU"]
[{"$nulls":3},"Potwierdzeni goście","Potwierdzeni razem","Jedzenie","Inne","Razem"]
[null,"DATA",null,"Dorośli",{"$f":"SUMIF(Tabela_Goście[BĘDZIE?],\"=Tak\",Tabela_Goście[DOROŚLI])","v":26},{"$f":"Tabela_Posiłki[[#Totals],[KOSZT NA DOROSŁEGO]]","v":{"v":12.690089084110037,"d":"12.69 zł"}},{"$f":"Koszt_podstawowy_na_gościa","v":{"v":18.695652173913043,"d":"18.70 zł"}},{"$f":"(Podsumowanie_uczestników[[#This Row],[Jedzenie]]+Podsumowanie_uczestników[[#This Row],[Inne]])*Dorośli_razem","v":{"v":816.0292727086002,"d":"816.03 zł"}}]
[null,"14 Czerwca 2011",null,"Dzieci",{"$f":"SUMIF(Tabela_Goście[BĘDZIE?],\"=Tak\",Tabela_Goście[DZIECI])","v":20},{"$f":"Tabela_Posiłki[[#Totals],[KOSZT NA DZIECKO]]","v":{"v":7.252884190656953,"d":"7.25 zł"}},{"$f":"Koszt_podstawowy_na_gościa","v":{"v":18.695652173913043,"d":"18.70 zł"}},{"$f":"(Podsumowanie_uczestników[[#This Row],[Jedzenie]]+Podsumowanie_uczestników[[#This Row],[Inne]])*Dzieci_razem","v":{"v":518.9707272914,"d":"518.97 zł"}}]
[{"$nulls":3},"Suma",{"$f":"SUBTOTAL(109,Podsumowanie_uczestników[Potwierdzeni razem])","v":46},{"$f":"\"Średnia.     \"&TEXT(SUBTOTAL(101,Podsumowanie_uczestników[Jedzenie]),\"# ##0,00 zł\")","v":"Średnia.     9,97 zł"},{"$f":"\"Średnia.     \"&TEXT(SUBTOTAL(101,Podsumowanie_uczestników[Inne]),\"# ##0,00 zł\")","v":"Średnia.     18,70 zł"},{"$f":"SUBTOTAL(109,Podsumowanie_uczestników[Razem])","v":{"v":1335,"d":"1,335.00 zł"}}]
[null,"GODZINA"]
[null,"Od 14:00 do 16:00"]
[{"$nulls":3},"PODSUMOWANIE BUDŻETU"]
[null,"MIEJSCE",null,"POZYCJA","LICZBA","KWOTA BUDŻETU","CAŁKOWITY KOSZT","RÓŻNICA"]
[null,"Dom cioci Ani",null,"Jedzenie i napoje",{"$f":"COUNTA(Tabela_Posiłki[JEDZENIE LUB NAPÓJ])","v":18},{"v":500,"d":"500.00 zł"},{"$f":"Tabela_Posiłki[[#Totals],[CAŁKOWITY KOSZT]]","v":{"v":475,"d":"475.00 zł"}},{"$f":"Przegląd_budżetu[[#This Row],[KWOTA BUDŻETU]]-Przegląd_budżetu[[#This Row],[CAŁKOWITY KOSZT]]","v":{"v":25,"d":"25.00 zł"}}]
[{"$nulls":3},{"$f":"Tabela1_nagłówek","v":"Wyposażenie i sprzęt"},{"$f":"COUNTA(Tabela1_budżet[Wyposażenie i sprzęt])","v":7},{"v":400,"d":"400.00 zł"},{"$f":"Tabela1_budżet[[#Totals],[Koszt]]","v":{"v":400,"d":"400.00 zł"}},{"$f":"Przegląd_budżetu[[#This Row],[KWOTA BUDŻETU]]-Przegląd_budżetu[[#This Row],[CAŁKOWITY KOSZT]]","v":{"v":0,"d":"0.00 zł"}}]
[{"$nulls":3},{"$f":"Tabela2_nagłówek","v":"Dekoracje"},{"$f":"COUNTA(Tabela2_budżet[Dekoracje])","v":4},{"v":150,"d":"150.00 zł"},{"$f":"Tabela2_budżet[[#Totals],[Koszt]]","v":{"v":175,"d":"175.00 zł"}},{"$f":"Przegląd_budżetu[[#This Row],[KWOTA BUDŻETU]]-Przegląd_budżetu[[#This Row],[CAŁKOWITY KOSZT]]","v":{"v":-25,"d":"-25.00 zł"}}]
[{"$nulls":3},{"$f":"Tabela3_nagłówek","v":"Inne"},{"$f":"COUNTA(Tabela3_budżet[Inne])","v":4},{"v":300,"d":"300.00 zł"},{"$f":"Tabela3_budżet[[#Totals],[Koszt]]","v":{"v":285,"d":"285.00 zł"}},{"$f":"Przegląd_budżetu[[#This Row],[KWOTA BUDŻETU]]-Przegląd_budżetu[[#This Row],[CAŁKOWITY KOSZT]]","v":{"v":15,"d":"15.00 zł"}}]
[{"$nulls":3},"Suma",{"$f":"SUBTOTAL(109,Przegląd_budżetu[LICZBA])","v":33},{"$f":"SUBTOTAL(109,Przegląd_budżetu[KWOTA BUDŻETU])","v":{"v":1350,"d":"1,350.00 zł"}},{"$f":"SUBTOTAL(109,Przegląd_budżetu[CAŁKOWITY KOSZT])","v":{"v":1335,"d":"1,335.00 zł"}},{"$f":"SUBTOTAL(109,Przegląd_budżetu[RÓŻNICA])","v":{"v":15,"d":"15.00 zł"}}]

{"sheet":"Lista gości","index":1,"n_rows":22,"n_cols":12,"rows_kept":22}
[]
[]
[null,"Lista gości"]
[]
[]
[]
[null,"IMIĘ I NAZWISKO","ADRES","MIASTO","WOJEWÓDZTWO","KOD POCZTOWY","TELEFON","ADRES E-MAIL","BĘDZIE?","DZIECI","DOROŚLI","RAZEM"]
[null,"Rodzina 1","Adres 1","Miasto 1","Województwo 1","Kod pocztowy 1","Telefon 1","Adres e-mail 1","Nie",2,2,{"$f":"SUM(Tabela_Goście[[#This Row],[DZIECI]:[DOROŚLI]])","v":4}]
[null,"Rodzina 2","Adres 2","Miasto 2","Województwo 2","Kod pocztowy 2","Telefon 2","Adres e-mail 2","Tak",1,1,{"$f":"SUM(Tabela_Goście[[#This Row],[DZIECI]:[DOROŚLI]])","v":2}]
[null,"Rodzina 3","Adres 3","Miasto 3","Województwo 3","Kod pocztowy 3","Telefon 3","Adres e-mail 3","Tak",3,3,{"$f":"SUM(Tabela_Goście[[#This Row],[DZIECI]:[DOROŚLI]])","v":6}]
[null,"Rodzina 4","Adres 4","Miasto 4","Województwo 4","Kod pocztowy 4","Telefon 4","Adres e-mail 4",null,null,2,{"$f":"SUM(Tabela_Goście[[#This Row],[DZIECI]:[DOROŚLI]])","v":2}]
[null,"Rodzina 5","Adres 5","Miasto 5","Województwo 5","Kod pocztowy 5","Telefon 5","Adres e-mail 5","Tak",4,3,{"$f":"SUM(Tabela_Goście[[#This Row],[DZIECI]:[DOROŚLI]])","v":7}]
[null,"Rodzina 6","Adres 6","Miasto 6","Województwo 6","Kod pocztowy 6","Telefon 6","Adres e-mail 6","Tak",2,2,{"$f":"SUM(Tabela_Goście[[#This Row],[DZIECI]:[DOROŚLI]])","v":4}]
[null,"Rodzina 7","Adres 7","Miasto 7","Województwo 7","Kod pocztowy 7","Telefon 7","Adres e-mail 7","Tak",1,4,{"$f":"SUM(Tabela_Goście[[#This Row],[DZIECI]:[DOROŚLI]])","v":5}]
[null,"Rodzina 8","Adres 8","Miasto 8","Województwo 8","Kod pocztowy 8","Telefon 8","Adres e-mail 8","Nie",5,3,{"$f":"SUM(Tabela_Goście[[#This Row],[DZIECI]:[DOROŚLI]])","v":8}]
[null,"Rodzina 9","Adres 9","Miasto 9","Województwo 9","Kod pocztowy 9","Telefon 9","Adres e-mail 9","Tak",3,2,{"$f":"SUM(Tabela_Goście[[#This Row],[DZIECI]:[DOROŚLI]])","v":5}]
[null,"Rodzina 10","Adres 10","Miasto 10","Województwo 10","Kod pocztowy 10","Telefon 10","Adres e-mail 10","Tak",null,4,{"$f":"SUM(Tabela_Goście[[#This Row],[DZIECI]:[DOROŚLI]])","v":4}]
[null,"Rodzina 11","Adres 11","Miasto 11","Województwo 11","Kod pocztowy 11","Telefon 11","Adres e-mail 11","Tak",3,5,{"$f":"SUM(Tabela_Goście[[#This Row],[DZIECI]:[DOROŚLI]])","v":8}]
[null,"Rodzina 12","Adres 12","Miasto 12","Województwo 12","Kod pocztowy 12","Telefon 12","Adres e-mail 12","Nie",2,3,{"$f":"SUM(Tabela_Goście[[#This Row],[DZIECI]:[DOROŚLI]])","v":5}]
[null,"Rodzina 13","Adres 13","Miasto 13","Województwo 13","Kod pocztowy 13","Telefon 13","Adres e-mail 13","Tak",3,2,{"$f":"SUM(Tabela_Goście[[#This Row],[DZIECI]:[DOROŚLI]])","v":5}]
[null,"Rodzina 14","Adres 14","Miasto 14","Województwo 14","Kod pocztowy 14","Telefon 14","Adres e-mail 14","Nie",null,1,{"$f":"SUM(Tabela_Goście[[#This Row],[DZIECI]:[DOROŚLI]])","v":1}]
[null,"Rodzina 15","Adres 15","Miasto 15","Województwo 15","Kod pocztowy 15","Telefon 15","Adres e-mail 15",null,null,2,{"$f":"SUM(Tabela_Goście[[#This Row],[DZIECI]:[DOROŚLI]])","v":2}]

{"sheet":"Jedzenie i napoje","index":2,"n_rows":25,"n_cols":10,"rows_kept":25}
[]
[]
[null,"Jedzenie i napoje"]
[]
[null,"Wprowadź koszt i szacowane porcje, aby automatycznie obliczyć potrzebne zakupy i koszt na porcję na podstawie całkowitej liczby gości"]
[null,"JEDZENIE LUB NAPÓJ","CAŁKOWITY KOSZT","PORCJA NA DZIECKO","PORCJA NA DOROSŁEGO","PORCJE RAZEM","KOSZT NA PORCJĘ","KOSZT NA DZIECKO","KOSZT NA DOROSŁEGO","UWAGI"]
[null,"Woda",{"v":15,"d":"15.00 zł"},0.5,2,{"$f":"(Tabela_Posiłki[[#This Row],[PORCJA NA DZIECKO]]*Dzieci_razem)+(Tabela_Posiłki[[#This Row],[PORCJA NA DOROSŁEGO]]*Dorośli_razem)","v":62},{"$f":"IFERROR(Tabela_Posiłki[[#This Row],[CAŁKOWITY KOSZT]]/Tabela_Posiłki[[#This Row],[PORCJE RAZEM]],\"\")","v":{"v":0.24193548387096775,"d":"0.24 zł"}},{"$f":"IFERROR(Tabela_Posiłki[[#This Row],[KOSZT NA PORCJĘ]]*Tabela_Posiłki[[#This Row],[PORCJA NA DZIECKO]],\"\")","v":{"v":0.12096774193548387,"d":"0.12 zł"}},{"$f":"IFERROR(Tabela_Posiłki[[#This Row],[KOSZT NA PORCJĘ]]*Tabela_Posiłki[[#This Row],[PORCJA NA DOROSŁEGO]],\"\")","v":{"v":0.4838709677419355,"d":"0.48 zł"}},"Butelki 2 l"]
[null,"Pudełka soku",{"v":15,"d":"15.00 zł"},2,0,{"$f":"(Tabela_Posiłki[[#This Row],[PORCJA NA DZIECKO]]*Dzieci_razem)+(Tabela_Posiłki[[#This Row],[PORCJA NA DOROSŁEGO]]*Dorośli_razem)","v":40},{"$f":"IFERROR(Tabela_Posiłki[[#This Row],[CAŁKOWITY KOSZT]]/Tabela_Posiłki[[#This Row],[PORCJE RAZEM]],\"\")","v":{"v":0.375,"d":"0.38 zł"}},{"$f":"IFERROR(Tabela_Posiłki[[#This Row],[KOSZT NA PORCJĘ]]*Tabela_Posiłki[[#This Row],[PORCJA NA DZIECKO]],\"\")","v":{"v":0.75,"d":"0.75 zł"}},{"$f":"IFERROR(Tabela_Posiłki[[#This Row],[KOSZT NA PORCJĘ]]*Tabela_Posiłki[[#This Row],[PORCJA NA DOROSŁEGO]],\"\")","v":{"v":0,"d":"0.00 zł"}},"Jabłko i białe winogrona"]
[null,"Wino",{"v":50,"d":"50.00 zł"},0,2,{"$f":"(Tabela_Posiłki[[#This Row],[PORCJA NA DZIECKO]]*Dzieci_razem)+(Tabela_Posiłki[[#This Row],[PORCJA NA DOROSŁEGO]]*Dorośli_razem)","v":52},{"$f":"IFERROR(Tabela_Posiłki[[#This Row],[CAŁKOWITY KOSZT]]/Tabela_Posiłki[[#This Row],[PORCJE RAZEM]],\"\")","v":{"v":0.9615384615384616,"d":"0.96 zł"}},{"$f":"IFERROR(Tabela_Posiłki[[#This Row],[KOSZT NA PORCJĘ]]*Tabela_Posiłki[[#This Row],[PORCJA NA DZIECKO]],\"\")","v":{"v":0,"d":"0.00 zł"}},{"$f":"IFERROR(Tabela_Posiłki[[#This Row],[KOSZT NA PORCJĘ]]*Tabela_Posiłki[[#This Row],[PORCJA NA DOROSŁEGO]],\"\")","v":{"v":1.9230769230769231,"d":"1.92 zł"}}]
[null,"Tort",{"v":75,"d":"75.00 zł"},1,1,{"$f":"(Tabela_Posiłki[[#This Row],[PORCJA NA DZIECKO]]*Dzieci_razem)+(Tabela_Posiłki[[#This Row],[PORCJA NA DOROSŁEGO]]*Dorośli_razem)","v":46},{"$f":"IFERROR(Tabela_Posiłki[[#This Row],[CAŁKOWITY KOSZT]]/Tabela_Posiłki[[#This Row],[PORCJE RAZEM]],\"\")","v":{"v":1.6304347826086956,"d":"1.63 zł"}},{"$f":"IFERROR(Tabela_Posiłki[[#This Row],[KOSZT NA PORCJĘ]]*Tabela_Posiłki[[#This Row],[PORCJA NA DZIECKO]],\"\")","v":{"v":1.6304347826086956,"d":"1.63 zł"}},{"$f":"IFERROR(Tabela_Posiłki[[#This Row],[KOSZT NA PORCJĘ]]*Tabela_Posiłki[[#This Row],[PORCJA NA DOROSŁEGO]],\"\")","v":{"v":1.6304347826086956,"d":"1.63 zł"}},"Zamówić w lokalnej piekarni"]
[null,"Lody",{"v":20,"d":"20.00 zł"},1,1.5,{"$f":"(Tabela_Posiłki[[#This Row],[PORCJA NA DZIECKO]]*Dzieci_razem)+(Tabela_Posiłki[[#This Row],[PORCJA NA DOROSŁEGO]]*Dorośli_razem)","v":59},{"$f":"IFERROR(Tabela_Posiłki[[#This Row],[CAŁKOWITY KOSZT]]/Tabela_Posiłki[[#This Row],[PORCJE RAZEM]],\"\")","v":{"v":0.3389830508474576,"d":"0.34 zł"}},{"$f":"IFERROR(Tabela_Posiłki[[#This Row],[KOSZT NA PORCJĘ]]*Tabela_Posiłki[[#This Row],[PORCJA NA DZIECKO]],\"\")","v":{"v":0.3389830508474576,"d":"0.34 zł"}},{"$f":"IFERROR(Tabela_Posiłki[[#This Row],[KOSZT NA PORCJĘ]]*Tabela_Posiłki[[#This Row],[PORCJA NA DOROSŁEGO]],\"\")","v":{"v":0.5084745762711864,"d":"0.51 zł"}}]
[null,"Kubki puddingu",{"v":15,"d":"15.00 zł"},1,0,{"$f":"(Tabela_Posiłki[[#This Row],[PORCJA NA DZIECKO]]*Dzieci_razem)+(Tabela_Posiłki[[#This Row],[PORCJA NA DOROSŁEGO]]*Dorośli_razem)","v":20},{"$f":"IFERROR(Tabela_Posiłki[[#This Row],[CAŁKOWITY KOSZT]]/Tabela_Posiłki[[#This Row],[PORCJE RAZEM]],\"\")","v":{"v":0.75,"d":"0.75 zł"}},{"$f":"IFERROR(Tabela_Posiłki[[#This Row],[KOSZT NA PORCJĘ]]*Tabela_Posiłki[[#This Row],[PORCJA NA DZIECKO]],\"\")","v":{"v":0.75,"d":"0.75 zł"}},{"$f":"IFERROR(Tabela_Posiłki[[#This Row],[KOSZT NA PORCJĘ]]*Tabela_Posiłki[[#This Row],[PORCJA NA DOROSŁEGO]],\"\")","v":{"v":0,"d":"0.00 zł"}},"Kupić gotowe kubki: waniliowe i czekoladowe"]
[null,"Faszerowane pieczarki",{"v":32,"d":"32.00 zł"},1,2,{"$f":"(Tabela_Posiłki[[#This Row],[PORCJA NA DZIECKO]]*Dzieci_razem)+(Tabela_Posiłki[[#This Row],[PORCJA NA DOROSŁEGO]]*Dorośli_razem)","v":72},{"$f":"IFERROR(Tabela_Posiłki[[#This Row],[CAŁKOWITY KOSZT]]/Tabela_Posiłki[[#This Row],[PORCJE RAZEM]],\"\")","v":{"v":0.4444444444444444,"d":"0.44 zł"}},{"$f":"IFERROR(Tabela_Posiłki[[#This Row],[KOSZT NA PORCJĘ]]*Tabela_Posiłki[[#This Row],[PORCJA NA DZIECKO]],\"\")","v":{"v":0.4444444444444444,"d":"0.44 zł"}},{"$f":"IFERROR(Tabela_Posiłki[[#This Row],[KOSZT NA PORCJĘ]]*Tabela_Posiłki[[#This Row],[PORCJA NA DOROSŁEGO]],\"\")","v":{"v":0.8888888888888888,"d":"0.89 zł"}},"Drobne pieczarki faszerowane serem śmietankowym i kiełbasą"]
[null,"Bruschetta",{"v":22,"d":"22.00 zł"},0,3,{"$f":"(Tabela_Posiłki[[#This Row],[PORCJA NA DZIECKO]]*Dzieci_razem)+(Tabela_Posiłki[[#This Row],[PORCJA NA DOROSŁEGO]]*Dorośli_razem)","v":78},{"$f":"IFERROR(Tabela_Posiłki[[#This Row],[CAŁKOWITY KOSZT]]/Tabela_Posiłki[[#This Row],[PORCJE RAZEM]],\"\")","v":{"v":0.28205128205128205,"d":"0.28 zł"}},{"$f":"IFERROR(Tabela_Posiłki[[#This Row],[KOSZT NA PORCJĘ]]*Tabela_Posiłki[[#This Row],[PORCJA NA DZIECKO]],\"\")","v":{"v":0,"d":"0.00 zł"}},{"$f":"IFERROR(Tabela_Posiłki[[#This Row],[KOSZT NA PORCJĘ]]*Tabela_Posiłki[[#This Row],[PORCJA NA DOROSŁEGO]],\"\")","v":{"v":0.8461538461538461,"d":"0.85 zł"}},"Pomidory i bazylia"]
[null,"Wędzony łosoś",{"v":50,"d":"50.00 zł"},1,2,{"$f":"(Tabela_Posiłki[[#This Row],[PORCJA NA DZIECKO]]*Dzieci_razem)+(Tabela_Posiłki[[#This Row],[PORCJA NA DOROSŁEGO]]*Dorośli_razem)","v":72},{"$f":"IFERROR(Tabela_Posiłki[[#This Row],[CAŁKOWITY KOSZT]]/Tabela_Posiłki[[#This Row],[PORCJE RAZEM]],\"\")","v":{"v":0.6944444444444444,"d":"0.69 zł"}},{"$f":"IFERROR(Tabela_Posiłki[[#This Row],[KOSZT NA PORCJĘ]]*Tabela_Posiłki[[#This Row],[PORCJA NA DZIECKO]],\"\")","v":{"v":0.6944444444444444,"d":"0.69 zł"}},{"$f":"IFERROR(Tabela_Posiłki[[#This Row],[KOSZT NA PORCJĘ]]*Tabela_Posiłki[[#This Row],[PORCJA NA DOROSŁEGO]],\"\")","v":{"v":1.3888888888888888,"d":"1.39 zł"}}]
[null,"Mini bajgle",{"v":20,"d":"20.00 zł"},1,2,{"$f":"(Tabela_Posiłki[[#This Row],[PORCJA NA DZIECKO]]*Dzieci_razem)+(Tabela_Posiłki[[#This Row],[PORCJA NA DOROSŁEGO]]*Dorośli_razem)","v":72},{"$f":"IFERROR(Tabela_Posiłki[[#This Row],[CAŁKOWITY KOSZT]]/Tabela_Posiłki[[#This Row],[PORCJE RAZEM]],\"\")","v":{"v":0.2777777777777778,"d":"0.28 zł"}},{"$f":"IFERROR(Tabela_Posiłki[[#This Row],[KOSZT NA PORCJĘ]]*Tabela_Posiłki[[#This Row],[PORCJA NA DZIECKO]],\"\")","v":{"v":0.2777777777777778,"d":"0.28 zł"}},{"$f":"IFERROR(Tabela_Posiłki[[#This Row],[KOSZT NA PORCJĘ]]*Tabela_Posiłki[[#This Row],[PORCJA NA DOROSŁEGO]],\"\")","v":{"v":0.5555555555555556,"d":"0.56 zł"}},"4 torby — różne"]
[null,"Ser śmietankowy",{"v":10,"d":"10.00 zł"},1,2,{"$f":"(Tabela_Posiłki[[#This Row],[PORCJA NA DZIECKO]]*Dzieci_razem)+(Tabela_Posiłki[[#This Row],[PORCJA NA DOROSŁEGO]]*Dorośli_razem)","v":72},{"$f":"IFERROR(Tabela_Posiłki[[#This Row],[CAŁKOWITY KOSZT]]/Tabela_Posiłki[[#This Row],[PORCJE RAZEM]],\"\")","v":{"v":0.1388888888888889,"d":"0.14 zł"}},{"$f":"IFERROR(Tabela_Posiłki[[#This Row],[KOSZT NA PORCJĘ]]*Tabela_Posiłki[[#This Row],[PORCJA NA DZIECKO]],\"\")","v":{"v":0.1388888888888889,"d":"0.14 zł"}},{"$f":"IFERROR(Tabela_Posiłki[[#This Row],[KOSZT NA PORCJĘ]]*Tabela_Posiłki[[#This Row],[PORCJA NA DOROSŁEGO]],\"\")","v":{"v":0.2777777777777778,"d":"0.28 zł"}},"2 duże pudełka"]
[null,"Kapary",{"v":12,"d":"12.00 zł"},1,2,{"$f":"(Tabela_Posiłki[[#This Row],[PORCJA NA DZIECKO]]*Dzieci_razem)+(Tabela_Posiłki[[#This Row],[PORCJA NA DOROSŁEGO]]*Dorośli_razem)","v":72},{"$f":"IFERROR(Tabela_Posiłki[[#This Row],[CAŁKOWITY KOSZT]]/Tabela_Posiłki[[#This Row],[PORCJE RAZEM]],\"\")","v":{"v":0.16666666666666666,"d":"0.17 zł"}},{"$f":"IFERROR(Tabela_Posiłki[[#This Row],[KOSZT NA PORCJĘ]]*Tabela_Posiłki[[#This Row],[PORCJA NA DZIECKO]],\"\")","v":{"v":0.16666666666666666,"d":"0.17 zł"}},{"$f":"IFERROR(Tabela_Posiłki[[#This Row],[KOSZT NA PORCJĘ]]*Tabela_Posiłki[[#This Row],[PORCJA NA DOROSŁEGO]],\"\")","v":{"v":0.3333333333333333,"d":"0.33 zł"}},"3 słoiki"]
[null,"Skrzrdełka z kurczaka",{"v":45,"d":"45.00 zł"},2,4,{"$f":"(Tabela_Posiłki[[#This Row],[PORCJA NA DZIECKO]]*Dzieci_razem)+(Tabela_Posiłki[[#This Row],[PORCJA NA DOROSŁEGO]]*Dorośli_razem)","v":144},{"$f":"IFERROR(Tabela_Posiłki[[#This Row],[CAŁKOWITY KOSZT]]/Tabela_Posiłki[[#This Row],[PORCJE RAZEM]],\"\")","v":{"v":0.3125,"d":"0.31 zł"}},{"$f":"IFERROR(Tabela_Posiłki[[#This Row],[KOSZT NA PORCJĘ]]*Tabela_Posiłki[[#This Row],[PORCJA NA DZIECKO]],\"\")","v":{"v":0.625,"d":"0.63 zł"}},{"$f":"IFERROR(Tabela_Posiłki[[#This Row],[KOSZT NA PORCJĘ]]*Tabela_Posiłki[[#This Row],[PORCJA NA DOROSŁEGO]],\"\")","v":{"v":1.25,"d":"1.25 zł"}},"Kupić w lokalnym sklepie"]
[null,"Hummus",{"v":10,"d":"10.00 zł"},4,6,{"$f":"(Tabela_Posiłki[[#This Row],[PORCJA NA DZIECKO]]*Dzieci_razem)+(Tabela_Posiłki[[#This Row],[PORCJA NA DOROSŁEGO]]*Dorośli_razem)","v":236},{"$f":"IFERROR(Tabela_Posiłki[[#This Row],[CAŁKOWITY KOSZT]]/Tabela_Posiłki[[#This Row],[PORCJE RAZEM]],\"\")","v":{"v":0.0423728813559322,"d":"0.04 zł"}},{"$f":"IFERROR(Tabela_Posiłki[[#This Row],[KOSZT NA PORCJĘ]]*Tabela_Posiłki[[#This Row],[PORCJA NA DZIECKO]],\"\")","v":{"v":0.1694915254237288,"d":"0.17 zł"}},{"$f":"IFERROR(Tabela_Posiłki[[#This Row],[KOSZT NA PORCJĘ]]*Tabela_Posiłki[[#This Row],[PORCJA NA DOROSŁEGO]],\"\")","v":{"v":0.2542372881355932,"d":"0.25 zł"}},"Zrobić wieczór wcześniej"]
[null,"Chipsy z pity i parmezanu",{"v":14,"d":"14.00 zł"},4,6,{"$f":"(Tabela_Posiłki[[#This Row],[PORCJA NA DZIECKO]]*Dzieci_razem)+(Tabela_Posiłki[[#This Row],[PORCJA NA DOROSŁEGO]]*Dorośli_razem)","v":236},{"$f":"IFERROR(Tabela_Posiłki[[#This Row],[CAŁKOWITY KOSZT]]/Tabela_Posiłki[[#This Row],[PORCJE RAZEM]],\"\")","v":{"v":0.059322033898305086,"d":"0.06 zł"}},{"$f":"IFERROR(Tabela_Posiłki[[#This Row],[KOSZT NA PORCJĘ]]*Tabela_Posiłki[[#This Row],[PORCJA NA DZIECKO]],\"\")","v":{"v":0.23728813559322035,"d":"0.24 zł"}},{"$f":"IFERROR(Tabela_Posiłki[[#This Row],[KOSZT NA PORCJĘ]]*Tabela_Posiłki[[#This Row],[PORCJA NA DOROSŁEGO]],\"\")","v":{"v":0.3559322033898305,"d":"0.36 zł"}},"Zrobić wieczór wcześniej"]
[null,"Mieszanina warzyw",{"v":30,"d":"30.00 zł"},4,10,{"$f":"(Tabela_Posiłki[[#This Row],[PORCJA NA DZIECKO]]*Dzieci_razem)+(Tabela_Posiłki[[#This Row],[PORCJA NA DOROSŁEGO]]*Dorośli_razem)","v":340},{"$f":"IFERROR(Tabela_Posiłki[[#This Row],[CAŁKOWITY KOSZT]]/Tabela_Posiłki[[#This Row],[PORCJE RAZEM]],\"\")","v":{"v":0.08823529411764706,"d":"0.09 zł"}},{"$f":"IFERROR(Tabela_Posiłki[[#This Row],[KOSZT NA PORCJĘ]]*Tabela_Posiłki[[#This Row],[PORCJA NA DZIECKO]],\"\")","v":{"v":0.35294117647058826,"d":"0.35 zł"}},{"$f":"IFERROR(Tabela_Posiłki[[#This Row],[KOSZT NA PORCJĘ]]*Tabela_Posiłki[[#This Row],[PORCJA NA DOROSŁEGO]],\"\")","v":{"v":0.8823529411764707,"d":"0.88 zł"}},"Słupki marchewki, seler, brokuły, kalafior, papryka czerwona i zielona"]
[null,"Kula serowa",{"v":15,"d":"15.00 zł"},5,10,{"$f":"(Tabela_Posiłki[[#This Row],[PORCJA NA DZIECKO]]*Dzieci_razem)+(Tabela_Posiłki[[#This Row],[PORCJA NA DOROSŁEGO]]*Dorośli_razem)","v":360},{"$f":"IFERROR(Tabela_Posiłki[[#This Row],[CAŁKOWITY KOSZT]]/Tabela_Posiłki[[#This Row],[PORCJE RAZEM]],\"\")","v":{"v":0.041666666666666664,"d":"0.04 zł"}},{"$f":"IFERROR(Tabela_Posiłki[[#This Row],[KOSZT NA PORCJĘ]]*Tabela_Posiłki[[#This Row],[PORCJA NA DZIECKO]],\"\")","v":{"v":0.20833333333333331,"d":"0.21 zł"}},{"$f":"IFERROR(Tabela_Posiłki[[#This Row],[KOSZT NA PORCJĘ]]*Tabela_Posiłki[[#This Row],[PORCJA NA DOROSŁEGO]],\"\")","v":{"v":0.41666666666666663,"d":"0.42 zł"}},"Różne: ser śmietankowy, ostry ser z orzechami"]
[null,"Krakersy",{"v":25,"d":"25.00 zł"},5,10,{"$f":"(Tabela_Posiłki[[#This Row],[PORCJA NA DZIECKO]]*Dzieci_razem)+(Tabela_Posiłki[[#This Row],[PORCJA NA DOROSŁEGO]]*Dorośli_razem)","v":360},{"$f":"IFERROR(Tabela_Posiłki[[#This Row],[CAŁKOWITY KOSZT]]/Tabela_Posiłki[[#This Row],[PORCJE RAZEM]],\"\")","v":{"v":0.06944444444444445,"d":"0.07 zł"}},{"$f":"IFERROR(Tabela_Posiłki[[#This Row],[KOSZT NA PORCJĘ]]*Tabela_Posiłki[[#This Row],[PORCJA NA DZIECKO]],\"\")","v":{"v":0.3472222222222222,"d":"0.35 zł"}},{"$f":"IFERROR(Tabela_Posiłki[[#This Row],[KOSZT NA PORCJĘ]]*Tabela_Posiłki[[#This Row],[PORCJA NA DOROSŁEGO]],\"\")","v":{"v":0.6944444444444444,"d":"0.69 zł"}},"Różne"]
[null,"Suma",{"$f":"SUBTOTAL(109,Tabela_Posiłki[CAŁKOWITY KOSZT])","v":{"v":475,"d":"475.00 zł"}},{"$f":"SUBTOTAL(109,Tabela_Posiłki[PORCJA NA DZIECKO])","v":34.5},{"$f":"SUBTOTAL(109,Tabela_Posiłki[PORCJA NA DOROSŁEGO])","v":65.5},{"$f":"SUBTOTAL(109,Tabela_Posiłki[PORCJE RAZEM])","v":2393},{"$f":"SUBTOTAL(109,Tabela_Posiłki[KOSZT NA PORCJĘ])","v":{"v":6.915706603622084,"d":"6.92 zł"}},{"$f":"SUBTOTAL(109,Tabela_Posiłki[KOSZT NA DZIECKO])","v":{"v":7.252884190656953,"d":"7.25 zł"}},{"$f":"SUBTOTAL(109,Tabela_Posiłki[KOSZT NA DOROSŁEGO])","v":{"v":12.690089084110037,"d":"12.69 zł"}},{"$f":"SUBTOTAL(109,Tabela_Posiłki[UWAGI])","v":0}]

{"sheet":"Inne ważne rzeczy","index":3,"n_rows":30,"n_cols":5,"rows_kept":30,"merged":[[14,1,14,4],[22,1,22,4]]}
[]
[]
[null,"Inne ważne rzeczy"]
[]
[]
[null,"Wyposażenie i sprzęt","Koszt","Zakupiono","Uwagi"]
[null,"Wynajem pomieszczenia/hallu",{"v":250,"d":"250.00 zł"},"Tak"]
[null,"Obrusy i fartuchy",{"v":30,"d":"30.00 zł"},"Tak","Wynajem"]
[null,"Stoły i krzesła",{"v":0,"d":"0.00 zł"},null,"Wliczone w koszt wynajmu hallu"]
[null,"Serwetki do napojów",{"v":25,"d":"25.00 zł"}]
[null,"Serwetki do kolacji",{"v":20,"d":"20.00 zł"},null,"Wynajem"]
[null,"Obsługa kelnerska",{"v":50,"d":"50.00 zł"},null,"Wynajem"]
[null,"Szkło",{"v":25,"d":"25.00 zł"},null,"Wynajem"]
[null,"Sumy",{"$f":"SUBTOTAL(109,Tabela1_budżet[Koszt])","v":{"v":400,"d":"400.00 zł"}}]
[]
[]
[null,"Dekoracje","Koszt","Zakupiono","Uwagi"]
[null,"Balony",{"v":25,"d":"25.00 zł"}]
[null,"Zbiornik z helem",{"v":50,"d":"50.00 zł"},null,"Wynajem"]
[null,"Elementy dekoracyjne",{"v":100,"d":"100.00 zł"},"Tak","10 razem"]
[null,"Szklane wazony",{"v":0,"d":"0.00 zł"},null,"Pożyczyć od Anety"]
[null,"Sumy",{"$f":"SUBTOTAL(109,Tabela2_budżet[Koszt])","v":{"v":175,"d":"175.00 zł"}}]
[]
[]
[null,"Inne","Koszt","Zakupiono","Uwagi"]
[null,"Zaproszenia",{"v":50,"d":"50.00 zł"},"Tak"]
[null,"Opłaty pocztowe",{"v":60,"d":"60.00 zł"},"Tak"]
[null,"Fotograf",{"v":125,"d":"125.00 zł"},null,"2 godziny (14:00–16:00)"]
[null,"Pamiątki z przyjęcia",{"v":50,"d":"50.00 zł"}]
[null,"Sumy",{"$f":"SUBTOTAL(109,Tabela3_budżet[Koszt])","v":{"v":285,"d":"285.00 zł"}}]

{"sheet":"Siatka usadzenia gości","index":4,"n_rows":43,"n_cols":34,"rows_kept":43,"merged":[[35,0,35,17],[35,19,35,33]]}
["Rozmieszczenie siedzeń"]
{"$rows_empty":33}
[{"$nulls":33},"*1 kwadrat = ok. 1 stopy kwadratowej"]
["Uwagi",{"$nulls":18},{"$f":"\" Całkowita liczba potwierdzonych gości: \"&Potwierdzeni_goście","v":" Całkowita liczba potwierdzonych gości: 46"}]
[{"$nulls":19},"Zastosować można dowolne z ustawień stołów:"]
[{"$nulls":20},{"$f":"ROUNDUP(Potwierdzeni_goście/6,0)&\" stoły okrągłe 137-centymetrowe (6 miejsc)\"","v":"8 stoły okrągłe 137-centymetrowe (6 miejsc)"}]
[{"$nulls":20},{"$f":"ROUNDUP(Potwierdzeni_goście/8,0) &\" stoły okrągłe 152-centymetrowe (8 miejsc)\"","v":"6 stoły okrągłe 152-centymetrowe (8 miejsc)"}]
[{"$nulls":20},{"$f":"ROUNDUP(Potwierdzeni_goście/10,0)&\" stoły okrągłe 182-centymetrowe (10 miejsc)\"","v":"5 stoły okrągłe 182-centymetrowe (10 miejsc)"}]
[{"$nulls":20},{"$f":"ROUNDUP(Potwierdzeni_goście/6,0)& \" stoły prostokątne 76 centymetrów x 182 centymetry (6 miejsc)\"","v":"8 stoły prostokątne 76 centymetrów x 182 centymetry (6 miejsc)"}]
[{"$nulls":20},{"$f":"ROUNDUP(Potwierdzeni_goście/8,0)&\" stoły prostokątne 76 centymetrów x 243 centymetry (8 miejsc)\"","v":"6 stoły prostokątne 76 centymetrów x 243 centymetry (8 miejsc)"}]
[{"$nulls":19},"(Preferowana odległość między stołami: 1 metr)"]